bitfinex/quotes_BTCUSD_20220201
["timestamp","ask_amount","ask_price","bid_price","bid_amount"]
[1643727409592,0.59687975,38414.0,38411.0,0.00043718]
[1643727409991,0.08260803,38413.0,38411.0,0.00043718]
[1643727410197,0.950169,38412.0,38411.0,0.00043718]
[1643727410396,0.948069,38412.0,38391.0,0.21740168]
[1643727410593,0.38731073,38404.0,38389.0,0.00349941]
[1643727410810,0.0479,38403.0,38399.0,0.02097064]
[1643727411012,0.26593998,38400.0,38389.0,0.00349941]
[1643727411215,0.13653581,38393.0,38389.0,0.00349941]
[1643727411414,0.0479,38392.0,38389.0,0.00349941]
[1643727411615,0.0479,38391.0,38385.0,0.08561344]
[1643727411811,0.0479,38391.0,38389.0,0.00087485]
[1643727412410,0.0479,38391.0,38390.0,0.13348848]
[1643727412914,0.065122,38401.0,38396.0,0.10112653]
[1643727413111,0.0479,38400.0,38396.0,0.10112653]
[1643727413912,0.39074851,38412.0,38396.0,0.10112653]
[1643727413913,0.065116,38405.0,38396.0,0.10112653]
[1643727414118,0.24328151,38412.0,38404.0,0.15674152]
[1643727414314,0.350169,38411.0,38408.0,0.0923589]
[1643727414558,0.350169,38414.0,38409.0,0.001]
[1643727414760,0.350169,38414.0,38405.0,0.001]
[1643727415158,0.350169,38414.0,38410.0,0.11815659]
[1643727415361,0.27423362,38414.0,38411.0,0.001]
[1643727415560,0.00139801,38420.0,38411.0,0.001]
[1643727415759,0.35013,38419.0,38411.0,0.001]
[1643727415959,0.00139801,38420.0,38411.0,0.001]
[1643727416161,0.58683857,38419.0,38416.0,0.15357879]
[1643727416360,0.35013,38419.0,38417.0,0.001]
[1643727416561,0.41660739,38420.0,38417.0,0.001]
[1643727416961,0.41660739,38420.0,38414.0,0.00091525]
[1643727417361,0.26975554,38419.0,38414.0,0.00091525]
[1643727417562,0.065112,38414.0,38399.0,0.001]
[1643727417765,0.12507893,38407.0,38396.0,0.10047196]
[1643727417963,0.12507893,38407.0,38397.0,0.001]
[1643727417964,0.65072971,38406.0,38397.0,0.001]
[1643727418204,0.35013,38405.0,38389.0,0.04282031]
[1643727418404,0.12507893,38407.0,38391.0,0.03639229]
[1643727418405,0.0479,38404.0,38391.0,0.03639229]
[1643727418606,0.0479,38403.0,38391.0,0.03793673]
[1643727418806,0.065116,38405.0,38402.0,0.01985612]
[1643727419004,0.35013,38404.0,38396.0,0.04461472]
[1643727419204,0.065116,38405.0,38396.0,0.00191568]
[1643727419407,0.065116,38405.0,38396.0,0.03794509]
[1643727419602,0.065116,38405.0,38396.0,0.2472045]
[1643727419804,0.065116,38405.0,38404.0,0.12058857]
[1643727420208,0.065116,38405.0,38399.0,0.00192413]
[1643727420405,0.35013,38404.0,38399.0,0.00092413]
[1643727420607,0.0479,38403.0,38399.0,0.00092413]
[1643727420807,0.35013,38402.0,38399.0,0.00092413]
[1643727421207,0.065116,38405.0,38400.0,0.11523937]
[1643727421407,0.065116,38405.0,38401.0,0.001]
[1643727421608,0.130225,38408.0,38401.0,0.001]
[1643727421808,0.22185554,38415.0,38401.0,0.001]
[1643727421809,0.26975554,38417.0,38401.0,0.001]
[1643727422064,0.57198554,38416.0,38401.0,0.04719771]
[1643727422260,0.57198554,38416.0,38401.0,0.11229371]
[1643727422461,0.16697594,38426.0,38401.0,0.11229371]
[1643727422462,0.24971888,38426.0,38402.0,0.27055281]
[1643727422662,0.00139348,38420.0,38416.0,0.11580611]
[1643727422862,0.35013,38419.0,38417.0,0.001]
[1643727423460,0.35013,38419.0,38409.0,0.001]
[1643727423661,0.35013,38419.0,38407.0,0.00092394]
[1643727423662,0.32400811,38420.0,38408.0,0.23023641]
[1643727423861,0.32400811,38420.0,38415.0,0.00045862]
[1643727424062,0.35013,38419.0,38415.0,0.00045862]
[1643727424360,0.065089,38420.0,38419.0,0.07587704]
[1643727424565,0.26035995,38428.0,38419.0,0.07587704]
[1643727424566,0.065083,38424.0,38419.0,0.07587704]
[1643727424764,0.065083,38424.0,38420.0,0.001]
[1643727424765,0.35013,38423.0,38420.0,0.001]
[1643727425161,0.35013,38423.0,38420.0,0.155038]
[1643727425366,1.46849598,38433.0,38420.0,0.155038]
[1643727425367,0.13015779,38434.0,38422.0,0.0377019]
[1643727425562,0.14346946,38438.0,38422.0,0.001]
[1643727425806,0.14346946,38438.0,38423.0,0.0455963]
[1643727426006,0.28802078,38438.0,38423.0,0.001]
[1643727426207,0.00138885,38427.0,38426.0,0.13379699]
[1643727426607,0.00555455,38433.0,38427.0,1.2]
[1643727426807,0.00555455,38433.0,38429.0,0.04838626]
[1643727427006,0.01,38439.0,38430.0,0.04558362]
[1643727427212,0.01,38439.0,38436.0,0.10103969]
[1643727427508,0.01,38439.0,38437.0,0.15277302]
[1643727427706,0.0105,38449.0,38439.0,1.2]
[1643727427910,0.0105,38449.0,38440.0,0.04838204]
[1643727428111,0.0105,38449.0,38442.0,1.2]
[1643727428112,0.065032,38449.0,38442.0,1.2]
[1643727428317,0.01,38459.0,38456.0,0.24670584]
[1643727428711,0.19456683,38474.0,38458.0,1.2]
[1643727428712,0.20501184,38469.0,38458.0,1.2]
[1643727428915,0.01,38469.0,38459.0,0.22120248]
[1643727429108,0.01,38469.0,38458.0,0.77223105]
[1643727429312,0.01,38469.0,38459.0,0.42]
[1643727429562,0.01,38469.0,38468.0,0.22444649]
[1643727429762,0.01,38469.0,38468.0,0.33471623]
[1643727429961,0.01,38469.0,38468.0,0.68483823]
[1643727430161,0.01,38469.0,38460.0,0.22120248]
[1643727430368,0.01,38469.0,38459.0,0.62076]
[1643727430560,0.005,38469.0,38459.0,0.42]
[1643727430958,0.00150018,38466.0,38459.0,0.42]
[1643727431160,0.30641027,38464.0,38459.0,0.42]
[1643727431370,0.350122,38463.0,38459.0,0.42]
[1643727432067,0.350122,38463.0,38443.0,0.1479]
[1643727432068,1.26502668,38462.0,38442.0,0.23437725]
[1643727432367,0.13711076,38459.0,38440.0,0.0986525]
[1643727432564,0.0479,38458.0,38440.0,0.0986525]
[1643727432761,0.41228089,38451.0,38442.0,0.1185975]
[1643727432961,0.0479,38450.0,38442.0,0.1185975]
[1643727433407,0.00150045,38448.0,38443.0,0.21679926]
[1643727433607,0.00150045,38448.0,38442.0,0.1135975]
[1643727434406,0.0479,38449.0,38440.0,0.1006525]
[1643727434407,0.18944912,38449.0,38440.0,0.002]
[1643727434607,0.24304817,38447.0,38440.0,0.002]
[1643727434807,0.0013718,38447.0,38440.0,0.002]
[1643727435506,0.18944912,38449.0,38440.0,0.002]
[1643727435707,0.00137182,38445.0,38440.0,0.002]
[1643727436808,0.065042,38450.0,38440.0,0.002]
[1643727437052,0.00137183,38444.0,38440.0,0.002]
[1643727438052,0.0479,38443.0,38440.0,0.002]
[1643727438253,0.0479,38442.0,38440.0,0.002]
[1643727438457,0.398022,38441.0,38440.0,0.002]
[1643727438655,0.0479,38441.0,38437.0,0.65192658]
[1643727439255,0.14579812,38445.0,38437.0,0.417]
[1643727439558,0.00140082,38441.0,38437.0,0.417]
[1643727439757,0.513082,38440.0,38431.0,0.00095703]
[1643727439955,0.16296,38440.0,38431.0,0.00095703]
[1643727440161,0.350122,38439.0,38431.0,0.00095703]
[1643727440356,0.0479,38438.0,38431.0,0.02010743]
[1643727440557,0.35152287,38437.0,38431.0,0.02106446]
[1643727440813,0.0479,38436.0,38431.0,0.02106446]
[1643727441612,0.0479,38436.0,38431.0,0.02010743]
[1643727441813,0.00139438,38435.0,38431.0,0.02105142]
[1643727442012,0.00139438,38435.0,38432.0,0.350122]
[1643727442214,0.00139438,38435.0,38432.0,0.38463081]
[1643727442415,0.00139438,38435.0,38431.0,0.00105142]
[1643727442416,0.000119,38432.0,38431.0,0.00105142]
[1643727442613,0.048019,38432.0,38431.0,0.00094399]
[1643727442816,0.048019,38432.0,38427.0,0.20028]
[1643727442817,0.068019,38432.0,38427.0,0.20028]
[1643727443012,0.068019,38432.0,38430.0,0.00094403]
[1643727444013,0.068019,38432.0,38426.0,0.76490409]
[1643727444215,0.068019,38432.0,38429.0,0.00094404]
[1643727444216,0.020119,38432.0,38429.0,0.00094404]
[1643727444455,0.020119,38432.0,38431.0,1.27669502]
[1643727444658,0.020119,38432.0,38431.0,0.350122]
[1643727444855,0.020119,38432.0,38429.0,0.00094404]
[1643727445258,0.020119,38432.0,38427.0,0.1]
[1643727445461,0.020119,38432.0,38429.0,0.00094699]
[1643727446457,0.020119,38432.0,38426.0,0.42]
[1643727446658,0.31498972,38432.0,38429.0,0.00047643]
[1643727446858,0.0479,38431.0,38429.0,0.00047643]
[1643727447558,0.0479,38431.0,38426.0,0.42]
[1643727447760,0.0479,38431.0,38428.0,0.00047644]
[1643727448804,0.0479,38431.0,38415.0,0.04444196]
[1643727448805,0.350122,38430.0,38416.0,0.22492646]
[1643727449003,0.12890322,38423.0,38415.0,0.22692646]
[1643727449202,0.0479,38422.0,38415.0,0.64692646]
[1643727449604,0.0479,38422.0,38415.0,0.86789774]
[1643727450204,0.0479,38422.0,38419.0,0.00435248]
[1643727451204,0.350122,38421.0,38419.0,0.0033]
[1643727451403,0.0479,38420.0,38419.0,0.00435248]
[1643727451953,0.52204898,38420.0,38419.0,0.00435248]
[1643727452155,0.52204898,38420.0,38415.0,0.422]
[1643727452156,0.0030562,38418.0,38415.0,0.002]
[1643727452356,0.46311973,38417.0,38415.0,0.002]
[1643727452753,0.51311973,38417.0,38415.0,0.002]
[1643727452958,0.11299773,38417.0,38415.0,0.002]
[1643727453161,0.0479,38417.0,38415.0,0.002]
[1643727454354,0.350122,38416.0,38415.0,0.002]
[1643727454556,0.398022,38416.0,38415.0,0.002]
[1643727454756,0.0479,38416.0,38415.0,0.002]
[1643727455816,0.54777822,38416.0,38415.0,0.002]
[1643727456413,0.398022,38416.0,38415.0,0.002]
[1643727456614,0.130169,38423.0,38415.0,0.08286641]
[1643727456812,0.130169,38423.0,38415.0,0.002]
[1643727457012,0.178069,38423.0,38415.0,0.002]
[1643727457412,0.130169,38423.0,38417.0,0.15515679]
[1643727458015,0.065081,38422.0,38417.0,0.00115448]
[1643727458215,0.20194271,38427.0,38417.0,0.00115448]
[1643727458417,0.20194271,38427.0,38415.0,0.21400006]
[1643727458615,0.350122,38426.0,38417.0,0.00115448]
[1643727458816,0.0479,38425.0,38417.0,0.00115448]
[1643727459015,0.22124573,38420.0,38417.0,0.00115448]
[1643727459213,0.065087,38420.0,38417.0,0.00115448]
[1643727459453,0.05,38424.0,38417.0,0.00115448]
[1643727459655,0.06508435,38421.0,38415.0,0.002]
[1643727459862,0.0653455,38410.0,38402.0,0.3322]
[1643727460062,0.0653455,38410.0,38402.0,0.0011]
[1643727460260,0.27282646,38409.0,38402.0,0.0011]
[1643727460457,0.0479,38409.0,38402.0,0.0011]
[1643727460658,0.350122,38408.0,38402.0,0.0011]
[1643727460856,0.0479,38407.0,38402.0,0.0011]
[1643727461061,0.0479,38406.0,38402.0,0.0011]
[1643727461257,0.0479,38405.0,38402.0,0.0011]
[1643727461657,0.0479,38405.0,38404.0,0.76270782]
[1643727461857,0.0653455,38410.0,38404.0,1.06430439]
[1643727462056,0.0653455,38410.0,38404.0,0.88937793]
[1643727462255,0.0653455,38410.0,38405.0,0.35834852]
[1643727462456,0.0653455,38410.0,38406.0,0.18614351]
[1643727462658,0.0653455,38410.0,38407.0,0.26448323]
[1643727462964,0.05655765,38410.0,38409.0,0.03681437]
[1643727463222,0.05655765,38410.0,38409.0,1.76374213]
[1643727463414,0.00275765,38410.0,38409.0,1.76374213]
[1643727463620,0.04565765,38429.0,38409.0,1.91374213]
[1643727463816,1.05,38428.0,38409.0,1.56362013]
[1643727464016,0.25596901,38425.0,38414.0,0.22996673]
[1643727464217,0.06508394,38421.0,38414.0,0.22996673]
[1643727464415,0.06508394,38421.0,38409.0,1.35]
[1643727464616,0.06508394,38421.0,38415.0,0.00114877]
[1643727464818,0.00150232,38424.0,38416.0,0.350122]
[1643727465219,0.00150232,38424.0,38417.0,0.05]
[1643727465418,0.00150232,38424.0,38419.0,0.20004]
[1643727465625,0.000119,38432.0,38419.0,0.20004]
[1643727465626,0.000119,38432.0,38429.0,0.26581998]
[1643727466021,0.000119,38432.0,38430.0,0.350122]
[1643727466822,0.000119,38432.0,38428.0,0.1245221]
[1643727467053,0.000119,38432.0,38429.0,0.56452798]
[1643727467254,0.000119,38432.0,38429.0,0.350122]
[1643727467452,0.000119,38432.0,38429.0,0.56351548]
[1643727467856,0.000119,38432.0,38430.0,0.24413709]
[1643727468255,0.00162125,38432.0,38429.0,0.21931507]
[1643727468657,0.00162125,38432.0,38428.0,0.1245221]
[1643727469055,0.00162125,38432.0,38424.0,0.22752413]
[1643727469256,0.00162125,38432.0,38421.0,0.8826]
[1643727469257,0.000119,38432.0,38421.0,0.8826]
[1643727469457,0.000119,38432.0,38422.0,0.1]
[1643727469458,0.00162126,38432.0,38422.0,0.1]
[1643727469658,0.00162126,38432.0,38418.0,0.21331724]
[1643727469864,0.0479,38431.0,38415.0,0.22536865]
[1643727470456,0.0479,38431.0,38415.0,0.22421988]
[1643727470457,0.40141993,38430.0,38415.0,0.22421988]
[1643727470715,0.00150237,38425.0,38419.0,0.28224117]
[1643727470913,0.00150237,38425.0,38421.0,0.4]
[1643727471108,0.00150237,38425.0,38422.0,0.40181066]
[1643727471309,0.00150237,38425.0,38422.0,0.30173984]
[1643727471514,0.00600856,38431.0,38423.0,0.32421988]
[1643727471711,0.03894151,38436.0,38429.0,1.2]
[1643727471911,0.03894151,38436.0,38430.0,0.151305]
[1643727472111,0.000194,38445.0,38430.0,0.251305]
[1643727472313,0.000194,38445.0,38429.0,1.4501]
[1643727472314,0.22795424,38442.0,38432.0,0.08019777]
[1643727472510,0.22795424,38442.0,38424.0,0.22421988]
[1643727472712,0.29447677,38437.0,38424.0,0.22421988]
[1643727473109,0.13011165,38439.0,38424.0,0.27421988]
[1643727473309,0.37576304,38434.0,38424.0,0.35387258]
[1643727473511,0.37576304,38434.0,38426.0,0.04038492]
[1643727473715,0.25513576,38434.0,38424.0,0.14386914]
[1643727473910,0.06505018,38442.0,38426.0,0.03571284]
[1643727474114,0.06505018,38442.0,38427.0,0.22421988]
[1643727474309,0.06505018,38442.0,38427.0,0.26761631]
[1643727474556,0.06505018,38442.0,38429.0,0.04503324]
[1643727474756,0.62123207,38439.0,38431.0,0.1439166]
[1643727474956,0.62123207,38439.0,38429.0,0.04711427]
[1643727474957,0.68628907,38439.0,38429.0,0.04711427]
[1643727475158,0.68628907,38439.0,38425.0,0.22421988]
[1643727475159,0.68628907,38439.0,38427.0,0.03344524]
[1643727475360,0.68628907,38439.0,38427.0,0.26314021]
[1643727475361,0.06656259,38437.0,38427.0,0.26314021]
[1643727475557,0.00150477,38437.0,38428.0,0.39658009]
[1643727475759,0.00150477,38437.0,38430.0,0.0375574]
[1643727475960,0.00150477,38437.0,38433.0,0.4]
[1643727476165,0.000194,38455.0,38436.0,0.2]
[1643727476360,0.000194,38455.0,38443.0,0.05]
[1643727476563,0.000194,38455.0,38454.0,0.41680717]
[1643727476763,0.01,38459.0,38454.0,0.25745617]
[1643727476957,0.01,38459.0,38457.0,0.14501289]
[1643727477461,0.01,38459.0,38458.0,1.59175683]
[1643727477659,0.005,38469.0,38468.0,0.08865336]
[1643727477860,0.0258259,38467.0,38461.0,0.09246592]
[1643727478058,0.005,38469.0,38463.0,0.2489979]
[1643727478317,0.005,38469.0,38465.0,0.1452716]
[1643727478508,0.005,38469.0,38467.0,0.201]
[1643727478712,0.005,38469.0,38468.0,1.43493779]
[1643727478911,0.005,38469.0,38468.0,1.400708]
[1643727478912,0.0001,38469.0,38468.0,1.400708]
[1643727479110,0.0001,38469.0,38468.0,1.57828629]
[1643727479314,0.0001,38469.0,38468.0,0.72828629]
[1643727479510,0.0001,38469.0,38468.0,0.300708]
[1643727480211,0.0001,38469.0,38463.0,0.2489979]
[1643727480413,0.0001,38469.0,38461.0,0.1]
[1643727480710,0.0001,38469.0,38457.0,1.2728]
[1643727480711,0.0001,38469.0,38458.0,0.21940304]
[1643727480911,0.0001,38469.0,38459.0,0.1]
[1643727481111,0.0001,38469.0,38456.0,0.0479]
[1643727481313,0.0001,38469.0,38460.0,0.14081778]
[1643727481513,0.00151553,38465.0,38456.0,0.0479]
[1643727481721,0.00151553,38465.0,38450.0,1.62669899]
[1643727481722,0.31545808,38463.0,38450.0,0.7762]
[1643727481961,0.10164181,38462.0,38446.0,0.08993649]
[1643727482159,0.10164181,38462.0,38442.0,0.784]
[1643727482160,0.27379588,38461.0,38442.0,0.784]
[1643727482361,0.0479,38461.0,38442.0,0.784]
[1643727482562,0.22589588,38466.0,38452.0,0.12119056]
[1643727482563,0.28863677,38460.0,38452.0,0.12119056]
[1643727482759,0.22589588,38466.0,38452.0,0.12119056]
[1643727482760,0.00151567,38456.0,38452.0,0.12119056]
[1643727482961,0.00151567,38456.0,38451.0,0.27160371]
[1643727483264,0.00151567,38456.0,38441.0,0.00119311]
[1643727483462,0.0932885,38449.0,38441.0,0.00119311]
[1643727483666,0.0479,38451.0,38442.0,0.350122]
[1643727483864,0.00151576,38450.0,38441.0,0.00119311]
[1643727484062,0.00151576,38450.0,38449.0,1.27751454]
[1643727484263,0.00151576,38450.0,38449.0,0.52851354]
[1643727484467,0.00606212,38456.0,38450.0,1.2]
[1643727484664,0.00606212,38456.0,38451.0,0.97592688]
[1643727484862,0.37200582,38469.0,38451.0,1.07592688]
[1643727485063,0.37200582,38469.0,38445.0,0.00678233]
[1643727485262,0.37200582,38469.0,38443.0,0.1]
[1643727485263,0.27148802,38468.0,38442.0,0.1]
[1643727485466,0.27148802,38468.0,38444.0,0.22589588]
[1643727485467,0.1479,38468.0,38444.0,0.22589588]
[1643727485708,0.22589588,38467.0,38441.0,1.1677]
[1643727486003,0.0479,38466.0,38453.0,0.0902566]
[1643727486206,0.06500623,38465.0,38453.0,0.0894976]
[1643727486407,0.06500623,38465.0,38445.0,0.00060005]
[1643727486607,0.1300472,38460.0,38445.0,0.00060005]
[1643727486804,0.27379588,38459.0,38445.0,0.00060005]
[1643727487009,0.32379588,38459.0,38445.0,0.00060005]
[1643727487204,0.16922054,38453.0,38440.0,0.13243274]
[1643727487407,0.0479,38452.0,38445.0,0.00120011]
[1643727487705,0.0979,38452.0,38445.0,0.00120011]
[1643727488307,0.11293451,38452.0,38446.0,0.13248572]
[1643727488708,0.16445187,38452.0,38445.0,0.00120011]
[1643727489312,0.065029,38451.0,38445.0,0.00120011]
[1643727489563,0.65890718,38450.0,38437.0,0.0011]
[1643727489858,0.06505044,38442.0,38437.0,0.0011]
[1643727490260,0.11505044,38442.0,38437.0,0.0011]
[1643727490658,0.06505044,38442.0,38440.0,0.23165332]
[1643727490857,0.06503074,38446.0,38441.0,0.151074]
[1643727491056,0.06503074,38446.0,38439.0,0.04470976]
[1643727491273,0.35556644,38444.0,38438.0,0.00046603]
[1643727491456,0.0479,38443.0,38438.0,0.00046603]
[1643727491961,0.0479,38443.0,38437.0,0.0011]
[1643727491962,0.97849193,38442.0,38437.0,0.0011]
[1643727492168,0.29892918,38441.0,38439.0,0.0009307]
[1643727492359,0.61958482,38440.0,38439.0,0.0009307]
[1643727492558,0.71748482,38440.0,38439.0,0.0009307]
[1643727493209,0.71748482,38440.0,38437.0,0.0011]
[1643727493210,0.448022,38440.0,38437.0,0.0011]
[1643727493405,0.065059,38439.0,38438.0,0.00093072]
[1643727493607,0.85939299,38439.0,38438.0,0.00093072]
[1643727494006,0.85939299,38439.0,38437.0,0.0011]
[1643727494409,0.463081,38439.0,38437.0,0.0011]
[1643727494606,0.70102302,38439.0,38437.0,0.0011]
[1643727494810,0.463081,38439.0,38437.0,0.0011]
[1643727495408,1.43503851,38438.0,38428.0,0.0011]
[1643727495611,1.43503851,38438.0,38420.0,0.0031]
[1643727495612,0.62391788,38437.0,38420.0,0.0031]
[1643727495811,0.065071,38434.0,38420.0,0.0031]
[1643727496008,0.13016097,38432.0,38420.0,0.0031]
[1643727496209,0.398022,38431.0,38420.0,0.0031]
[1643727496508,0.13133813,38425.0,38420.0,0.0031]
[1643727496811,0.398022,38425.0,38420.0,0.0031]
[1643727497061,0.130162,38431.0,38420.0,0.0031]
[1643727497062,0.0479,38431.0,38420.0,0.0031]
[1643727497860,0.0479,38431.0,38426.0,0.23494892]
[1643727497861,0.16738183,38431.0,38426.0,0.23494892]
[1643727498060,0.16738183,38431.0,38420.0,0.0031]
[1643727498061,0.16738183,38431.0,38421.0,0.20823691]
[1643727498261,0.16738183,38431.0,38426.0,0.00119652]
[1643727498862,0.0479,38431.0,38426.0,0.00119652]
[1643727499263,0.0479,38431.0,38423.0,0.23092443]
[1643727499465,0.0479,38431.0,38427.0,0.00119649]
[1643727499864,0.38861815,38430.0,38427.0,0.00119649]
[1643727500067,0.13986294,38429.0,38427.0,0.00119649]
[1643727500266,0.350122,38428.0,38427.0,0.00119649]
[1643727500471,0.350122,38428.0,38420.0,0.0031]
[1643727500472,0.6336408,38428.0,38420.0,0.0031]
[1643727500717,0.398022,38428.0,38426.0,0.0011965]
[1643727501511,0.3608151,38427.0,38426.0,0.0011965]
[1643727501714,0.7588371,38427.0,38420.0,0.0031]
[1643727501921,1.72601788,38426.0,38420.0,0.0031]
[1643727502114,1.72601788,38426.0,38417.0,0.0031]
[1643727502115,1.2479,38425.0,38417.0,0.0031]
[1643727502314,0.45,38423.0,38411.0,0.01]
[1643727502516,0.06508988,38421.0,38411.0,0.01]
[1643727502717,0.12378957,38416.0,38411.0,0.30322481]
[1643727502914,0.08049942,38419.0,38411.0,0.30322481]
[1643727502915,0.0479,38417.0,38411.0,0.30322481]
[1643727503113,0.06509,38419.0,38411.0,0.30322481]
[1643727503114,0.0479,38416.0,38411.0,0.30322481]
[1643727503512,0.11298159,38416.0,38411.0,0.01]
[1643727504216,0.20279913,38431.0,38412.0,1.24197583]
[1643727504470,0.09407,38436.0,38414.0,0.43593864]
[1643727504670,0.09407,38436.0,38429.0,0.29935004]
[1643727504868,0.06505475,38434.0,38430.0,0.04049216]
[1643727505371,0.06505475,38434.0,38431.0,0.415168]
[1643727505768,0.04924702,38434.0,38431.0,0.415168]
[1643727507266,0.04924702,38434.0,38431.0,0.065046]
[1643727507469,0.09407,38436.0,38432.0,0.350122]
[1643727507666,0.09407,38436.0,38432.0,0.21695829]
[1643727507868,0.00151576,38438.0,38433.0,0.350122]
[1643727508077,0.00624579,38460.0,38435.0,0.46]
[1643727508323,0.000194,38456.0,38442.0,0.1554]
[1643727508518,0.000194,38456.0,38447.0,0.4]
[1643727508721,0.000194,38456.0,38453.0,0.45]
[1643727508920,0.0001,38469.0,38455.0,0.064994]
[1643727509120,0.0001,38469.0,38456.0,0.30081785]
[1643727509320,0.0001,38469.0,38460.0,0.24665628]
[1643727509617,0.0001,38469.0,38462.0,0.064993]
[1643727510018,0.0001,38469.0,38462.0,0.15777131]
[1643727510217,0.0001,38469.0,38463.0,0.350122]
[1643727510417,0.0001,38469.0,38462.0,0.15777131]
[1643727510619,0.0001,38469.0,38462.0,0.064993]
[1643727510818,0.0001,38469.0,38457.0,0.31533286]
[1643727511017,0.1559385,38466.0,38456.0,0.129987]
[1643727511216,0.06500177,38465.0,38454.0,0.22355833]
[1643727511417,0.06652702,38465.0,38455.0,0.350122]
[1643727511619,0.06652702,38465.0,38458.0,0.064998]
[1643727511816,0.00152525,38465.0,38460.0,0.2704546]
[1643727512061,0.00152525,38465.0,38461.0,0.150769]
[1643727512261,0.00152525,38465.0,38461.0,0.46363337]
[1643727512462,0.06499567,38468.0,38456.0,0.2413661]
[1643727512665,0.12588772,38465.0,38454.0,0.34800601]
[1643727512862,0.12588772,38465.0,38455.0,0.450122]
[1643727513064,0.19089372,38465.0,38455.0,0.1]
[1643727513268,0.19883583,38465.0,38451.0,0.2217122]
[1643727513465,0.41375877,38465.0,38451.0,0.2217122]
[1643727513664,0.06500571,38462.0,38455.0,0.07981591]
[1643727513864,0.00362574,38466.0,38456.0,0.60191212]
[1643727514065,0.00362574,38466.0,38457.0,1.2]
[1643727514267,0.00362574,38466.0,38458.0,0.48347163]
[1643727514667,0.28277212,38462.0,38458.0,0.215811]
[1643727514865,0.28277212,38462.0,38454.0,0.21249382]
[1643727515065,0.28277212,38462.0,38452.0,0.26163511]
[1643727515066,0.14301309,38465.0,38452.0,0.26163511]
[1643727515266,0.14301309,38465.0,38453.0,0.25703061]
[1643727515722,0.08012316,38463.0,38453.0,0.04018685]
[1643727515927,0.08012316,38463.0,38443.0,0.2438]
[1643727515928,0.27333865,38457.0,38443.0,0.2438]
[1643727516119,0.27333865,38457.0,38436.0,1.42042678]
[1643727516120,0.1533108,38453.0,38441.0,0.130039]
[1643727516318,0.1533108,38453.0,38440.0,0.14120874]
[1643727516617,0.0479,38454.0,38440.0,0.14120874]
[1643727516820,0.065029,38452.0,38448.0,0.08466504]
[1643727517019,0.06501517,38456.0,38448.0,0.08466504]
[1643727517820,0.065021,38455.0,38440.0,0.1]
[1643727518019,0.13005293,38453.0,38440.0,0.19989]
[1643727518219,0.13005293,38453.0,38441.0,0.27213367]
[1643727518621,0.13005293,38453.0,38445.0,0.00124783]
[1643727518824,0.06502642,38451.0,38448.0,0.08043899]
[1643727519662,0.065018,38457.0,38448.0,0.08043899]
[1643727519868,0.26010215,38468.0,38449.0,0.3992857]
[1643727519869,0.00822173,38468.0,38449.0,0.3992857]
[1643727520065,0.00822173,38468.0,38450.0,0.39461102]
[1643727520066,0.00152981,38468.0,38450.0,0.39461102]
[1643727520265,0.06499835,38466.0,38451.0,0.1]
[1643727520468,0.06499835,38466.0,38458.0,0.26691901]
[1643727520762,0.06499835,38466.0,38457.0,0.09853691]
[1643727520968,0.06499835,38466.0,38460.0,0.00124733]
[1643727521570,0.13153108,38468.0,38461.0,0.750122]
[1643727521571,0.00153011,38468.0,38461.0,0.750122]
[1643727521765,0.00153011,38468.0,38461.0,0.350122]
[1643727521964,0.0001,38469.0,38457.0,0.09853691]
[1643727522163,0.0001,38469.0,38463.0,0.00096662]
[1643727522365,0.22163749,38466.0,38457.0,0.34952538]
[1643727522564,0.00138987,38468.0,38457.0,0.34952538]
[1643727522967,0.06639187,38468.0,38457.0,0.34952538]
[1643727523213,0.06500302,38464.0,38457.0,0.34952538]
[1643727523405,0.06500302,38464.0,38452.0,0.065008]
[1643727523612,0.06500302,38464.0,38449.0,0.040337]
[1643727523805,0.06500302,38464.0,38447.0,0.12275088]
[1643727523806,0.11673344,38461.0,38447.0,0.12275088]
[1643727524206,0.11673344,38461.0,38448.0,0.04701814]
[1643727524405,0.22521618,38458.0,38449.0,0.26777418]
[1643727524608,0.29023418,38458.0,38450.0,0.350122]
[1643727524805,0.29023418,38458.0,38448.0,0.065016]
[1643727525204,0.29023418,38458.0,38449.0,0.350122]
[1643727525406,0.35024869,38458.0,38449.0,0.350122]
[1643727525606,0.35024869,38458.0,38446.0,0.1]
[1643727525805,0.35024869,38458.0,38445.0,0.04484999]
[1643727526607,0.35024869,38458.0,38447.0,0.13368835]
[1643727526807,0.12503251,38458.0,38450.0,0.25596923]
[1643727527056,0.12503251,38458.0,38450.0,0.25721207]
[1643727527459,0.12503251,38458.0,38450.0,0.00124284]
[1643727527663,0.25814049,38466.0,38457.0,0.14757714]
[1643727527664,0.06500522,38461.0,38457.0,0.14757714]
[1643727527859,0.19658116,38467.0,38452.0,0.2780293]
[1643727528060,0.20280435,38467.0,38448.0,0.2324058]
[1643727528259,0.20280435,38467.0,38447.0,0.1]
[1643727528260,0.0479,38466.0,38457.0,0.00124259]
[1643727528460,0.58223252,38465.0,38457.0,0.00124259]
[1643727528660,0.0479,38464.0,38457.0,0.00124259]
[1643727528963,0.43805622,38458.0,38457.0,0.00124259]
[1643727529160,1.15454086,38458.0,38447.0,0.32186125]
[1643727529460,0.34164724,38458.0,38456.0,0.00124264]
[1643727529666,0.350011,38457.0,38456.0,0.00124264]
[1643727529862,0.06500661,38462.0,38456.0,0.00124264]
[1643727530461,0.06500661,38462.0,38451.0,0.45373746]
[1643727530462,0.06500661,38462.0,38451.0,0.49772589]
[1643727530717,0.06500661,38462.0,38457.0,0.00124259]
[1643727531713,0.06500661,38462.0,38456.0,0.0990404]
[1643727532011,0.06500661,38462.0,38458.0,0.00124258]
[1643727532816,0.06500661,38462.0,38453.0,0.23977853]
[1643727533013,0.06500661,38462.0,38458.0,0.00124256]
[1643727533814,0.480038,38461.0,38458.0,0.00124256]
[1643727534020,0.33019091,38460.0,38450.0,0.22447]
[1643727534214,0.33019091,38460.0,38458.0,0.00124256]
[1643727534215,0.06501529,38459.0,38458.0,0.00124256]
[1643727534462,0.41502629,38459.0,38458.0,0.00124256]
[1643727535261,0.41502629,38459.0,38450.0,0.065014]
[1643727535262,0.41502629,38459.0,38451.0,0.2197156]